[Event "November 21 Late 2023"]
[Site "https://www.chess.com"]
[Date "2023.11.21"]
[Round "4"]
[White "campochess"]
[Black "Rangel, Daniel"]
[Result "0-1"]
[Board "123"]
[TimeControl "180+1"]
[BlackFideId "2124475"]
[WhiteElo "2238"]
[BlackElo "2267"]
[BlackTeam "BRA"]
[WhiteClock "0:00:23"]
[BlackClock "0:01:05"]

1. e4 {[%clk 0:02:59]}  c5 {[%clk 0:02:58]} 2. Nc3 {[%clk 0:02:59]}  g6 {[%clk 0:02:57]} 3. g3 {[%clk 0:02:55]}  Bg7 {[%clk 0:02:55]} 4. Nge2 {[%clk 0:02:55]}  Nc6 {[%clk 0:02:56]} 5. d3 {[%clk 0:02:55]}  d6 {[%clk 0:02:56]} 6. Bg2 {[%clk 0:02:55]}  e5 {[%clk 0:02:57]} 7. O-O {[%clk 0:02:55]}  Be6 {[%clk 0:02:58]} 8. Nd5 {[%clk 0:02:54]}  Qd7 {[%clk 0:02:59]} 9. Re1 {[%clk 0:02:52]}  Nge7 {[%clk 0:02:58]} 10. Nec3 {[%clk 0:02:51]}  h5 {[%clk 0:02:56]} 11. h4 {[%clk 0:02:49]}  Nd4 {[%clk 0:02:54]} 12. Nxe7 {[%clk 0:02:47]}  Qxe7 {[%clk 0:02:54]} 13. Nd5 {[%clk 0:02:47]}  Qd7 {[%clk 0:02:54]} 14. c3 {[%clk 0:02:47]}  Nc6 {[%clk 0:02:50]} 15. Bd2 {[%clk 0:02:45]}  O-O {[%clk 0:02:47]} 16. b4 {[%clk 0:02:44]}  cxb4 {[%clk 0:02:44]} 17. cxb4 {[%clk 0:02:44]}  Nd4 {[%clk 0:02:42]} 18. Bh6 {[%clk 0:02:37]}  Bg4 {[%clk 0:02:40]} 19. Qd2 {[%clk 0:02:33]}  Rac8 {[%clk 0:02:29]} 20. Bxg7 {[%clk 0:02:32]}  Kxg7 {[%clk 0:02:28]} 21. Ne3 {[%clk 0:02:05]}  Rc7 {[%clk 0:02:01]} 22. Nxg4 {[%clk 0:01:45]}  hxg4 {[%clk 0:01:58]} 23. Rac1 {[%clk 0:01:43]}  Rfc8 {[%clk 0:01:55]} 24. Rxc7 {[%clk 0:01:43]}  Rxc7 {[%clk 0:01:51]} 25. h5 {[%clk 0:01:39]}  Qe7 {[%clk 0:01:40]} 26. hxg6 {[%clk 0:01:23]}  Kxg6 {[%clk 0:01:38]} 27. f4 {[%clk 0:01:17]}  gxf3 {[%clk 0:01:32]} 28. Bh3 {[%clk 0:01:17]}  Rc2 {[%clk 0:01:26]} 29. Bf5+ {[%clk 0:01:05]}  Kh5 {[%clk 0:01:16]} 30. g4+ {[%clk 0:01:01]}  Kh4 {[%clk 0:01:15]} 31. Qh6+ {[%clk 0:00:58]}  Kg3 {[%clk 0:01:14]} 32. Kh1 {[%clk 0:00:57]}  Qh4+ {[%clk 0:01:10]} 33. Qxh4+ {[%clk 0:00:56]}  Kxh4 {[%clk 0:01:11]} 34. a4 {[%clk 0:00:41]}  Kg3 {[%clk 0:01:09]} 35. Rg1+ {[%clk 0:00:39]}  Rg2 {[%clk 0:01:07]} 36. g5 {[%clk 0:00:23]}  Ne2 {[%clk 0:01:05]} 0-1

[Event "November 21 Late 2023"]
[Site "https://www.chess.com"]
[Date "2023.11.21"]
[Round "4"]
[White "Musalov, Ruslan"]
[Black "Bullen, Alex"]
[Result "1-0"]
[Board "125"]
[TimeControl "180+1"]
[WhiteFideId "4141490"]
[BlackFideId "1801627"]
[WhiteElo "2268"]
[BlackElo "2078"]
[WhiteTeam "RUS"]
[BlackTeam "WLS"]
[WhiteClock "0:02:12"]
[BlackClock "0:00:29"]

1. e4 {[%clk 0:03:00]}  c5 {[%clk 0:02:59]} 2. Nf3 {[%clk 0:02:53]}  e6 {[%clk 0:02:59]} 3. d4 {[%clk 0:02:54]}  cxd4 {[%clk 0:03:00]} 4. Nxd4 {[%clk 0:02:54]}  Nf6 {[%clk 0:03:00]} 5. Nc3 {[%clk 0:02:54]}  Nc6 {[%clk 0:03:01]} 6. Nxc6 {[%clk 0:02:55]}  bxc6 {[%clk 0:03:01]} 7. e5 {[%clk 0:02:55]}  Nd5 {[%clk 0:03:00]} 8. Ne4 {[%clk 0:02:56]}  Qc7 {[%clk 0:02:57]} 9. f4 {[%clk 0:02:56]}  Qb6 {[%clk 0:02:57]} 10. c4 {[%clk 0:02:56]}  Bb4+ {[%clk 0:02:56]} 11. Ke2 {[%clk 0:02:57]}  Ba6 {[%clk 0:02:50]} 12. Kf3 {[%clk 0:02:56]}  Ne7 {[%clk 0:02:42]} 13. Be3 {[%clk 0:02:52]}  Qb8 {[%clk 0:02:29]} 14. a3 {[%clk 0:02:51]}  Ba5 {[%clk 0:02:25]} 15. Nd6+ {[%clk 0:02:48]}  Kf8 {[%clk 0:02:25]} 16. b4 {[%clk 0:02:48]}  Bc7 {[%clk 0:02:22]} 17. Bc5 {[%clk 0:02:45]}  Bb7 {[%clk 0:02:14]} 18. Nxb7 {[%clk 0:02:42]}  Qxb7 {[%clk 0:02:13]} 19. Qxd7 {[%clk 0:02:42]}  Re8 {[%clk 0:02:05]} 20. Bd6 {[%clk 0:02:39]}  c5+ {[%clk 0:01:50]} 21. Kf2 {[%clk 0:02:39]}  Qe4 {[%clk 0:01:37]} 22. Bxc7 {[%clk 0:02:31]}  Qxf4+ {[%clk 0:01:36]} 23. Ke1 {[%clk 0:02:26]}  Qe3+ {[%clk 0:01:32]} 24. Be2 {[%clk 0:02:26]}  Qc3+ {[%clk 0:01:31]} 25. Kf2 {[%clk 0:02:26]}  Nf5 {[%clk 0:01:24]} 26. Bd6+ {[%clk 0:02:26]}  Ne7 {[%clk 0:01:17]} 27. Rad1 {[%clk 0:02:23]}  g6 {[%clk 0:01:11]} 28. Bxc5 {[%clk 0:02:20]}  Qxe5 {[%clk 0:01:08]} 29. Bf3 {[%clk 0:02:14]}  Qb2+ {[%clk 0:00:54]} 30. Rd2 {[%clk 0:02:14]}  Qc3 {[%clk 0:00:51]} 31. Rhd1 {[%clk 0:02:12]}  Qxc4 {[%clk 0:00:29]} 32. Qxe8+ {[%clk 0:02:12]} 1-0

[Event "November 21 Late 2023"]
[Site "https://www.chess.com"]
[Date "2023.11.21"]
[Round "4"]
[White "Curtis, John"]
[Black "Novikova, Galina"]
[Result "0-1"]
[Board "128"]
[TimeControl "180+1"]
[WhiteFideId "3200256"]
[BlackFideId "4157095"]
[WhiteElo "2203"]
[BlackElo "1972"]
[WhiteTeam "AUS"]
[BlackTeam "RUS"]
[WhiteClock "0:00:16"]
[BlackClock "0:00:42"]

1. e4 {[%clk 0:03:00]}  e6 {[%clk 0:02:57]} 2. d4 {[%clk 0:02:59]}  d5 {[%clk 0:02:58]} 3. Nc3 {[%clk 0:02:59]}  Bb4 {[%clk 0:02:57]} 4. exd5 {[%clk 0:02:57]}  exd5 {[%clk 0:02:58]} 5. Bd3 {[%clk 0:02:56]}  Nf6 {[%clk 0:02:57]} 6. Ne2 {[%clk 0:02:57]}  Bg4 {[%clk 0:02:45]} 7. f3 {[%clk 0:02:57]}  Bh5 {[%clk 0:02:45]} 8. O-O {[%clk 0:02:57]}  O-O {[%clk 0:02:44]} 9. Nf4 {[%clk 0:02:57]}  Bg6 {[%clk 0:02:44]} 10. Nce2 {[%clk 0:02:56]}  c6 {[%clk 0:02:43]} 11. c3 {[%clk 0:02:56]}  Bd6 {[%clk 0:02:42]} 12. Nxg6 {[%clk 0:02:56]}  hxg6 {[%clk 0:02:43]} 13. Bf4 {[%clk 0:02:55]}  Bxf4 {[%clk 0:02:40]} 14. Nxf4 {[%clk 0:02:56]}  Qd6 {[%clk 0:02:41]} 15. Qd2 {[%clk 0:02:55]}  Nbd7 {[%clk 0:02:41]} 16. Rfe1 {[%clk 0:02:52]}  Rfe8 {[%clk 0:02:41]} 17. g3 {[%clk 0:02:50]}  a6 {[%clk 0:02:36]} 18. Kf2 {[%clk 0:02:47]}  c5 {[%clk 0:02:33]} 19. Bf1 {[%clk 0:02:26]}  cxd4 {[%clk 0:02:22]} 20. Qxd4 {[%clk 0:02:25]}  Ne5 {[%clk 0:02:09]} 21. Rad1 {[%clk 0:02:12]}  Rad8 {[%clk 0:02:07]} 22. h4 {[%clk 0:01:57]}  b5 {[%clk 0:02:01]} 23. a3 {[%clk 0:01:56]}  Re7 {[%clk 0:01:56]} 24. Nd3 {[%clk 0:01:37]}  Rde8 {[%clk 0:01:44]} 25. Nxe5 {[%clk 0:01:37]}  Rxe5 {[%clk 0:01:45]} 26. Rxe5 {[%clk 0:01:36]}  Rxe5 {[%clk 0:01:46]} 27. Re1 {[%clk 0:01:36]}  Rxe1 {[%clk 0:01:46]} 28. Kxe1 {[%clk 0:01:36]}  Qxg3+ {[%clk 0:01:46]} 29. Qf2 {[%clk 0:01:35]}  Qe5+ {[%clk 0:01:36]} 30. Kd1 {[%clk 0:01:31]}  Qf4 {[%clk 0:01:21]} 31. Be2 {[%clk 0:01:11]}  Ng4 {[%clk 0:01:15]} 32. Qc5 {[%clk 0:00:57]}  Ne3+ {[%clk 0:01:08]} 33. Ke1 {[%clk 0:00:47]}  Qxh4+ {[%clk 0:01:06]} 34. Kd2 {[%clk 0:00:48]}  Nc4+ {[%clk 0:00:59]} 35. Bxc4 {[%clk 0:00:37]}  dxc4 {[%clk 0:01:00]} 36. Qc8+ {[%clk 0:00:37]}  Kh7 {[%clk 0:01:01]} 37. Ke3 {[%clk 0:00:34]}  Qe7+ {[%clk 0:00:58]} 38. Kf2 {[%clk 0:00:34]}  Qe6 {[%clk 0:00:54]} 39. Qxe6 {[%clk 0:00:19]}  fxe6 {[%clk 0:00:53]} 40. Ke3 {[%clk 0:00:18]}  Kg8 {[%clk 0:00:52]} 41. a4 {[%clk 0:00:19]}  Kf7 {[%clk 0:00:49]} 42. a5 {[%clk 0:00:19]}  e5 {[%clk 0:00:45]} 43. Ke4 {[%clk 0:00:19]}  Ke6 {[%clk 0:00:46]} 44. Ke3 {[%clk 0:00:16]}  Kf5 {[%clk 0:00:45]} 45. Kf2 {[%clk 0:00:12]}  Kf4 {[%clk 0:00:45]} 46. Ke2 {[%clk 0:00:12]}  g5 {[%clk 0:00:45]} 47. Kf2 {[%clk 0:00:12]}  g4 {[%clk 0:00:44]} 48. fxg4 {[%clk 0:00:12]}  Kxg4 {[%clk 0:00:45]} 49. Ke3 {[%clk 0:00:13]}  Kf5 {[%clk 0:00:45]} 50. Kf3 {[%clk 0:00:13]}  e4+ {[%clk 0:00:46]} 51. Ke3 {[%clk 0:00:14]}  Ke5 {[%clk 0:00:46]} 52. Kf2 {[%clk 0:00:12]}  Kf4 {[%clk 0:00:45]} 53. Ke2 {[%clk 0:00:11]}  e3 {[%clk 0:00:45]} 54. Kf1 {[%clk 0:00:11]}  Kf3 {[%clk 0:00:45]} 55. Ke1 {[%clk 0:00:11]}  e2 {[%clk 0:00:43]} 56. Kd2 {[%clk 0:00:11]}  Kf2 {[%clk 0:00:43]} 57. b4 {[%clk 0:00:11]}  e1=Q+ {[%clk 0:00:43]} 58. Kc2 {[%clk 0:00:11]}  Qe2+ {[%clk 0:00:43]} 59. Kb1 {[%clk 0:00:10]}  Qd1+ {[%clk 0:00:43]} 60. Kb2 {[%clk 0:00:10]}  Qb3+ {[%clk 0:00:43]} 61. Kc1 {[%clk 0:00:11]}  Qxc3+ {[%clk 0:00:43]} 62. Kb1 {[%clk 0:00:11]}  Qxb4+ {[%clk 0:00:43]} 63. Ka2 {[%clk 0:00:12]}  Qxa5+ {[%clk 0:00:44]} 64. Kb2 {[%clk 0:00:12]}  Qb4+ {[%clk 0:00:44]} 65. Kc2 {[%clk 0:00:12]}  Qb3+ {[%clk 0:00:44]} 66. Kd2 {[%clk 0:00:12]}  Qd3+ {[%clk 0:00:45]} 67. Kc1 {[%clk 0:00:13]}  Qe3+ {[%clk 0:00:44]} 68. Kb2 {[%clk 0:00:13]}  g5 {[%clk 0:00:42]} 69. Ka2 {[%clk 0:00:13]}  g4 {[%clk 0:00:41]} 70. Kb2 {[%clk 0:00:14]}  g3 {[%clk 0:00:42]} 71. Ka2 {[%clk 0:00:15]}  g2 {[%clk 0:00:42]} 72. Kb2 {[%clk 0:00:16]} 0-1

[Event "November 21 Late 2023"]
[Site "https://www.chess.com"]
[Date "2023.11.21"]
[Round "4"]
[White "zano2023"]
[Black "YouShallNotPass001"]
[Result "1/2-1/2"]
[Board "129"]
[TimeControl "180+1"]
[WhiteElo "2199"]
[BlackElo "2441"]
[WhiteClock "0:00:14"]
[BlackClock "0:00:08"]

1. d4 {[%clk 0:03:00]}  Nf6 {[%clk 0:02:59]} 2. Nd2 {[%clk 0:02:59]}  e6 {[%clk 0:03:00]} 3. Ngf3 {[%clk 0:02:58]}  c5 {[%clk 0:03:00]} 4. e3 {[%clk 0:02:58]}  b6 {[%clk 0:03:00]} 5. Bd3 {[%clk 0:02:59]}  cxd4 {[%clk 0:03:00]} 6. exd4 {[%clk 0:02:58]}  Bb7 {[%clk 0:03:01]} 7. Qe2 {[%clk 0:02:58]}  Be7 {[%clk 0:03:02]} 8. O-O {[%clk 0:02:58]}  O-O {[%clk 0:03:02]} 9. Re1 {[%clk 0:02:59]}  d6 {[%clk 0:03:03]} 10. Nf1 {[%clk 0:02:58]}  a6 {[%clk 0:03:03]} 11. Ng3 {[%clk 0:02:59]}  Nbd7 {[%clk 0:03:03]} 12. c3 {[%clk 0:02:57]}  Re8 {[%clk 0:03:04]} 13. h3 {[%clk 0:02:58]}  Qc7 {[%clk 0:03:04]} 14. Ng5 {[%clk 0:02:51]}  b5 {[%clk 0:02:52]} 15. Nh5 {[%clk 0:02:33]}  Nf8 {[%clk 0:02:25]} 16. Nxf6+ {[%clk 0:02:10]}  Bxf6 {[%clk 0:02:26]} 17. Ne4 {[%clk 0:02:09]}  Bxe4 {[%clk 0:02:16]} 18. Qxe4 {[%clk 0:02:08]}  d5 {[%clk 0:02:16]} 19. Qf3 {[%clk 0:02:06]}  b4 {[%clk 0:02:14]} 20. Bf4 {[%clk 0:02:04]}  Qb6 {[%clk 0:02:13]} 21. Be5 {[%clk 0:01:56]}  Bxe5 {[%clk 0:02:11]} 22. dxe5 {[%clk 0:01:50]}  bxc3 {[%clk 0:02:07]} 23. bxc3 {[%clk 0:01:51]}  Rec8 {[%clk 0:02:06]} 24. Rac1 {[%clk 0:01:50]}  Rc5 {[%clk 0:02:04]} 25. h4 {[%clk 0:01:47]}  Rac8 {[%clk 0:02:00]} 26. h5 {[%clk 0:01:47]}  Nd7 {[%clk 0:01:35]} 27. h6 {[%clk 0:01:46]}  g6 {[%clk 0:01:34]} 28. Rb1 {[%clk 0:01:34]}  Qa7 {[%clk 0:01:26]} 29. Rb3 {[%clk 0:01:31]}  Rxc3 {[%clk 0:01:22]} 30. Reb1 {[%clk 0:01:32]}  Rxb3 {[%clk 0:01:03]} 31. Rxb3 {[%clk 0:01:31]}  Rc1+ {[%clk 0:00:59]} 32. Kh2 {[%clk 0:01:30]}  Qc7 {[%clk 0:00:42]} 33. Qe3 {[%clk 0:01:08]}  Nxe5 {[%clk 0:00:23]} 34. Qb6 {[%clk 0:00:36]}  Nf3+ {[%clk 0:00:13]} 35. Kh3 {[%clk 0:00:24]}  Rh1+ {[%clk 0:00:13]} 36. Kg4 {[%clk 0:00:24]}  f5+ {[%clk 0:00:13]} 37. Kxf3 {[%clk 0:00:23]}  Qxb6 {[%clk 0:00:10]} 38. Rxb6 {[%clk 0:00:23]}  Kf7 {[%clk 0:00:09]} 39. Rb7+ {[%clk 0:00:22]}  Kf6 {[%clk 0:00:10]} 40. Rxh7 {[%clk 0:00:21]}  e5 {[%clk 0:00:11]} 41. Ke2 {[%clk 0:00:21]}  e4 {[%clk 0:00:11]} 42. Bxa6 {[%clk 0:00:20]}  d4 {[%clk 0:00:11]} 43. a4 {[%clk 0:00:17]}  Ra1 {[%clk 0:00:09]} 44. Bb5 {[%clk 0:00:16]}  Ra2+ {[%clk 0:00:08]} 45. Ke1 {[%clk 0:00:16]}  Ra1+ {[%clk 0:00:07]} 46. Ke2 {[%clk 0:00:16]}  Ra2+ {[%clk 0:00:08]} 47. Ke1 {[%clk 0:00:15]}  Ra1+ {[%clk 0:00:08]} 48. Ke2 {[%clk 0:00:14]} 1/2-1/2

[Event "November 21 Late 2023"]
[Site "https://www.chess.com"]
[Date "2023.11.21"]
[Round "4"]
[White "Bogaudinov, Rushan"]
[Black "Feliz Dotel, Dewar Bienvenido"]
[Result "1/2-1/2"]
[Board "131"]
[TimeControl "180+1"]
[WhiteFideId "4129288"]
[BlackFideId "6402801"]
[WhiteElo "1908"]
[BlackElo "2069"]
[WhiteTeam "RUS"]
[BlackTeam "DOM"]
[WhiteClock "0:00:36"]
[BlackClock "0:00:37"]

1. d4 {[%clk 0:03:00]}  d5 {[%clk 0:02:59]} 2. c4 {[%clk 0:02:59]}  e6 {[%clk 0:02:59]} 3. Nc3 {[%clk 0:02:59]}  c5 {[%clk 0:02:59]} 4. e3 {[%clk 0:02:58]}  Nf6 {[%clk 0:03:00]} 5. Nf3 {[%clk 0:02:58]}  Nc6 {[%clk 0:02:59]} 6. Be2 {[%clk 0:02:56]}  dxc4 {[%clk 0:02:55]} 7. Bxc4 {[%clk 0:02:56]}  a6 {[%clk 0:02:55]} 8. a4 {[%clk 0:02:55]}  cxd4 {[%clk 0:02:53]} 9. Nxd4 {[%clk 0:02:55]}  Nxd4 {[%clk 0:02:54]} 10. exd4 {[%clk 0:02:54]}  Be7 {[%clk 0:02:53]} 11. O-O {[%clk 0:02:54]}  O-O {[%clk 0:02:53]} 12. a5 {[%clk 0:02:53]}  Bd7 {[%clk 0:02:52]} 13. d5 {[%clk 0:02:50]}  exd5 {[%clk 0:02:51]} 14. Nxd5 {[%clk 0:02:49]}  Nxd5 {[%clk 0:02:45]} 15. Bxd5 {[%clk 0:02:49]}  Qc8 {[%clk 0:02:40]} 16. Be3 {[%clk 0:02:46]}  Bc6 {[%clk 0:02:34]} 17. Bxc6 {[%clk 0:02:28]}  Qxc6 {[%clk 0:02:30]} 18. Bb6 {[%clk 0:02:25]}  Bf6 {[%clk 0:02:26]} 19. Rc1 {[%clk 0:02:25]}  Qb5 {[%clk 0:02:26]} 20. b3 {[%clk 0:02:21]}  h6 {[%clk 0:02:24]} 21. Rc5 {[%clk 0:02:15]}  Qb4 {[%clk 0:02:16]} 22. Qd5 {[%clk 0:02:13]}  Bd8 {[%clk 0:01:52]} 23. Bc7 {[%clk 0:01:50]}  Bxc7 {[%clk 0:01:48]} 24. Rxc7 {[%clk 0:01:51]}  Rad8 {[%clk 0:01:44]} 25. Qxb7 {[%clk 0:01:48]}  Qxa5 {[%clk 0:01:44]} 26. Rc6 {[%clk 0:01:43]}  Rb8 {[%clk 0:01:35]} 27. Qxa6 {[%clk 0:01:33]}  Qxa6 {[%clk 0:01:35]} 28. Rxa6 {[%clk 0:01:34]}  Rxb3 {[%clk 0:01:35]} 29. g3 {[%clk 0:01:33]}  Rf3 {[%clk 0:01:32]} 30. Kg2 {[%clk 0:01:33]}  Rf5 {[%clk 0:01:28]} 31. Re1 {[%clk 0:01:31]}  g6 {[%clk 0:01:26]} 32. Re2 {[%clk 0:01:30]}  Kg7 {[%clk 0:01:26]} 33. h3 {[%clk 0:01:30]}  Rc8 {[%clk 0:01:24]} 34. Ra4 {[%clk 0:01:29]}  Rcc5 {[%clk 0:01:22]} 35. Rae4 {[%clk 0:01:29]}  Rf6 {[%clk 0:01:22]} 36. Re8 {[%clk 0:01:25]}  Rcf5 {[%clk 0:01:21]} 37. Rc8 {[%clk 0:01:15]}  g5 {[%clk 0:01:20]} 38. Rb2 {[%clk 0:01:11]}  Rf3 {[%clk 0:01:18]} 39. Rcc2 {[%clk 0:01:10]}  R3f5 {[%clk 0:01:18]} 40. Rd2 {[%clk 0:01:10]}  Rf3 {[%clk 0:01:17]} 41. Rd4 {[%clk 0:01:09]}  R3f5 {[%clk 0:01:18]} 42. Rd3 {[%clk 0:01:10]}  Re5 {[%clk 0:01:14]} 43. Rbd2 {[%clk 0:01:05]}  Ree6 {[%clk 0:01:14]} 44. Rc2 {[%clk 0:01:04]}  Rd6 {[%clk 0:01:14]} 45. Rdc3 {[%clk 0:01:05]}  Rde6 {[%clk 0:01:14]} 46. g4 {[%clk 0:01:02]}  Re4 {[%clk 0:01:11]} 47. Kg3 {[%clk 0:01:02]}  Ref4 {[%clk 0:01:11]} 48. Re3 {[%clk 0:01:02]}  Rd4 {[%clk 0:01:09]} 49. f3 {[%clk 0:01:01]}  Rdd6 {[%clk 0:01:08]} 50. h4 {[%clk 0:01:01]}  Rfe6 {[%clk 0:01:03]} 51. Rec3 {[%clk 0:00:56]}  Rd5 {[%clk 0:01:01]} 52. h5 {[%clk 0:00:56]}  Rf6 {[%clk 0:00:59]} 53. Rf2 {[%clk 0:00:55]}  Rd4 {[%clk 0:00:58]} 54. Re3 {[%clk 0:00:55]}  Rdf4 {[%clk 0:00:58]} 55. Re5 {[%clk 0:00:53]}  Rc4 {[%clk 0:00:57]} 56. Re3 {[%clk 0:00:53]}  Rcf4 {[%clk 0:00:57]} 57. Ra2 {[%clk 0:00:53]}  Rc4 {[%clk 0:00:57]} 58. Rb2 {[%clk 0:00:53]}  Rcf4 {[%clk 0:00:57]} 59. Rc2 {[%clk 0:00:53]}  Rd4 {[%clk 0:00:58]} 60. Rcc3 {[%clk 0:00:53]}  Rdf4 {[%clk 0:00:58]} 61. Re5 {[%clk 0:00:53]}  Rd4 {[%clk 0:00:58]} 62. Rec5 {[%clk 0:00:53]}  Rdf4 {[%clk 0:00:57]} 63. R5c4 {[%clk 0:00:52]}  Rxc4 {[%clk 0:00:56]} 64. Rxc4 {[%clk 0:00:53]}  Rd6 {[%clk 0:00:54]} 65. Kf2 {[%clk 0:00:53]}  Rd2+ {[%clk 0:00:54]} 66. Ke3 {[%clk 0:00:53]}  Rd1 {[%clk 0:00:55]} 67. Rc3 {[%clk 0:00:50]}  Re1+ {[%clk 0:00:55]} 68. Kf2 {[%clk 0:00:50]}  Re6 {[%clk 0:00:55]} 69. Rc5 {[%clk 0:00:50]}  Re7 {[%clk 0:00:55]} 70. f4 {[%clk 0:00:49]}  gxf4 {[%clk 0:00:55]} 71. Kf3 {[%clk 0:00:49]}  Re1 {[%clk 0:00:50]} 72. Kxf4 {[%clk 0:00:49]}  Rf1+ {[%clk 0:00:50]} 73. Kg3 {[%clk 0:00:48]}  Rg1+ {[%clk 0:00:51]} 74. Kf3 {[%clk 0:00:48]}  Rf1+ {[%clk 0:00:51]} 75. Kg2 {[%clk 0:00:48]}  Rf4 {[%clk 0:00:50]} 76. Kg3 {[%clk 0:00:48]}  Rf1 {[%clk 0:00:50]} 77. Rc4 {[%clk 0:00:47]}  Rg1+ {[%clk 0:00:50]} 78. Kf4 {[%clk 0:00:47]}  Rf1+ {[%clk 0:00:50]} 79. Ke5 {[%clk 0:00:47]}  Re1+ {[%clk 0:00:47]} 80. Kf5 {[%clk 0:00:47]}  Rf1+ {[%clk 0:00:47]} 81. Ke5 {[%clk 0:00:47]}  Re1+ {[%clk 0:00:47]} 82. Kd5 {[%clk 0:00:45]}  Rd1+ {[%clk 0:00:47]} 83. Ke4 {[%clk 0:00:45]}  Re1+ {[%clk 0:00:47]} 84. Kf3 {[%clk 0:00:45]}  Rf1+ {[%clk 0:00:47]} 85. Ke2 {[%clk 0:00:45]}  Rg1 {[%clk 0:00:47]} 86. Rf4 {[%clk 0:00:44]}  Ra1 {[%clk 0:00:44]} 87. Kf3 {[%clk 0:00:43]}  Rf1+ {[%clk 0:00:44]} 88. Kg3 {[%clk 0:00:43]}  Rg1+ {[%clk 0:00:44]} 89. Kf2 {[%clk 0:00:42]}  Ra1 {[%clk 0:00:44]} 90. Rf5 {[%clk 0:00:42]}  Rb1 {[%clk 0:00:43]} 91. g5 {[%clk 0:00:41]}  hxg5 {[%clk 0:00:43]} 92. Rxg5+ {[%clk 0:00:42]}  Kh6 {[%clk 0:00:43]} 93. Rf5 {[%clk 0:00:42]}  Rb7 {[%clk 0:00:42]} 94. Kg3 {[%clk 0:00:42]}  Rb3+ {[%clk 0:00:38]} 95. Kg2 {[%clk 0:00:42]}  Rb2+ {[%clk 0:00:39]} 96. Kf3 {[%clk 0:00:42]}  Rb1 {[%clk 0:00:39]} 97. Kg2 {[%clk 0:00:36]}  Rb2+ {[%clk 0:00:38]} 98. Kg3 {[%clk 0:00:36]}  Rb3+ {[%clk 0:00:37]} 99. Kg4 {[%clk 0:00:36]}  Rb4+ {[%clk 0:00:37]} 100. Kg3 {[%clk 0:00:36]}  Rb3+ {[%clk 0:00:37]} 1/2-1/2

[Event "November 21 Late 2023"]
[Site "https://www.chess.com"]
[Date "2023.11.21"]
[Round "4"]
[White "Pace, Christopher"]
[Black "Sailer, Mike"]
[Result "1-0"]
[Board "134"]
[TimeControl "180+1"]
[WhiteFideId "2610167"]
[BlackFideId "2012901"]
[WhiteElo "2427"]
[BlackElo "2109"]
[WhiteTeam "CAN"]
[BlackTeam "USA"]
[WhiteClock "0:01:06"]
[BlackClock "0:00:14"]

1. e4 {[%clk 0:03:00]}  g6 {[%clk 0:02:58]} 2. d4 {[%clk 0:03:00]}  Bg7 {[%clk 0:02:53]} 3. Nf3 {[%clk 0:03:00]}  c6 {[%clk 0:02:45]} 4. c4 {[%clk 0:02:59]}  d6 {[%clk 0:02:42]} 5. h3 {[%clk 0:02:58]}  Nf6 {[%clk 0:02:41]} 6. Nc3 {[%clk 0:02:58]}  Qc7 {[%clk 0:02:41]} 7. Bd3 {[%clk 0:02:58]}  Nbd7 {[%clk 0:02:39]} 8. O-O {[%clk 0:02:57]}  O-O {[%clk 0:02:32]} 9. a4 {[%clk 0:02:52]}  a5 {[%clk 0:02:28]} 10. Re1 {[%clk 0:02:41]}  e5 {[%clk 0:02:25]} 11. Be3 {[%clk 0:02:32]}  Re8 {[%clk 0:02:20]} 12. Rc1 {[%clk 0:02:31]}  exd4 {[%clk 0:02:13]} 13. Bxd4 {[%clk 0:02:29]}  Ne5 {[%clk 0:02:11]} 14. Nxe5 {[%clk 0:02:28]}  dxe5 {[%clk 0:02:10]} 15. Be3 {[%clk 0:02:27]}  Be6 {[%clk 0:02:04]} 16. Nd5 {[%clk 0:02:24]}  cxd5 {[%clk 0:01:44]} 17. cxd5 {[%clk 0:02:23]}  Qd8 {[%clk 0:01:36]} 18. dxe6 {[%clk 0:02:22]}  Rxe6 {[%clk 0:01:36]} 19. Qb3 {[%clk 0:02:19]}  Rd6 {[%clk 0:01:31]} 20. Bc4 {[%clk 0:02:18]}  Nxe4 {[%clk 0:01:15]} 21. Qxb7 {[%clk 0:02:11]}  Rd7 {[%clk 0:01:09]} 22. Qxe4 {[%clk 0:02:11]}  Kh8 {[%clk 0:01:07]} 23. Bb6 {[%clk 0:01:52]}  Qb8 {[%clk 0:01:00]} 24. Bb5 {[%clk 0:01:51]}  f5 {[%clk 0:00:52]} 25. Qxa8 {[%clk 0:01:38]}  Qxa8 {[%clk 0:00:49]} 26. Bxd7 {[%clk 0:01:39]}  Qb7 {[%clk 0:00:30]} 27. Rc8+ {[%clk 0:01:39]}  Bf8 {[%clk 0:00:31]} 28. Rxf8+ {[%clk 0:01:24]}  Kg7 {[%clk 0:00:30]} 29. Re8 {[%clk 0:01:08]}  Qxd7 {[%clk 0:00:26]} 30. R8xe5 {[%clk 0:01:06]}  Qxa4 {[%clk 0:00:14]} 31. Bxa5 {[%clk 0:01:06]} 1-0